[Event "2nd ESNAICC Women 2024"]
[Site "Andorra la Vella"]
[Date "2024.06.24"]
[Round "1.2"]
[White "Thornton, Filipina"]
[Black "Markidou, Christianna"]
[Result "1/2-1/2"]
[ECO "D35"]
[WhiteElo "1787"]
[BlackElo "1676"]
[Annotator "NA RC"]
[PlyCount "201"]
[EventDate "2024.06.24"]
[EventType "tourn"]
[EventCountry "AND"]
[SourceTitle "playchess.com"]
[Source "ChessBase"]
[SourceQuality "1"]
[TimeControl "40/5400+30:1800+30"]

1. d4 {[%emt 0:00:06]} d5 {[%emt 0:00:08]} 2. c4 {[%emt 0:00:09]} e6 {[%emt 0:00:06]} 3. Nc3 {[%emt 0:00:31]} c5 {[%emt 0:00:46]} 4. e3 {[%emt 0:03:16]} Nf6 {[%emt 0:01:48]} 5. cxd5 {[%emt 0:00:57]} exd5 {[%emt 0:01:33]} 6. Bd3 {[%emt 0:02:21]} Nc6 {[%emt 0:01:36]} 7. Nge2 {[%emt 0:00:33]} a6 {[%emt 0:02:05]} 8. a3 {[%emt 0:02:57]} Bg4 {[%emt 0:03:26]} 9. f3 {[%emt 0:00:17]} Be6 {[%emt 0:00:57]} 10. O-O {[%emt 0:01:09]} Bd6 {[%emt 0:00:44]} 11. Kh1 {[%emt 0:04:05]} O-O {[%emt 0:00:16]} 12. Bc2 {[%emt 0:01:44]} Qc7 {[%emt 0:01:10]} 13. h3 {[%emt 0:17:50]} Rad8 {[%emt 0:04:40]} 14. Qe1 {[%emt 0:03:13]} b5 {[%emt 0:08:37]} 15. Qh4 {[%emt 0:04:41]} b4 {[%emt 0:04:33]} 16. Na4 {[%emt 0:03:02]} Ne7 {[%emt 0:17:16]} 17. dxc5 {[%emt 0:08:25]} Bxc5 {[%emt 0:00:15]} 18. Nxc5 {[%emt 0:00:33]} Qxc5 {[%emt 0:00:11]} 19. Bd3 {[%emt 0:00:49]} a5 {[%emt 0:01:14]} 20. Bd2 {[%emt 0:00:41]} Nf5 {[%emt 0:08:03]} 21. Bxf5 {[%emt 0:04:44]} Bxf5 {[%emt 0:00:16]} 22. Rfc1 {[%emt 0:00:25]} Qb6 {[%emt 0:04:32]} 23. Nd4 {[%emt 0:01:20]} bxa3 {[%emt 0:07:44]} 24. bxa3 {[%emt 0:01:39]} Bd7 {[%emt 0:02:28]} 25. Rab1 {[%emt 0:00:46]} Qa6 {[%emt 0:00:11]} 26. Qe1 {[%emt 0:01:53]} a4 {[%emt 0:00:18]} 27. Rc7 {[%emt 0:04:06]} Rb8 {[%emt 0:01:01]} 28. Bb4 {[%emt 0:04:07]} Rfe8 {[%emt 0:00:19]} 29. Rbc1 {[%emt 0:02:57]} Rbc8 {[%emt 0:03:51]} 30. Rxc8 {[%emt 0:09:25]} Rxc8 {[%emt 0:00:23]} 31. Rxc8+ {[%emt 0:04:34]} Qxc8 {[%emt 0:00:09]} 32. Be7 {[%emt 0:00:51]} Ne8 {[%emt 0:05:45]} 33. Kh2 {[%emt 0:03:18]} Qc7+ {[%emt 0:01:44]} 34. Qg3 {[%emt 0:00:29]} Qxg3+ {[%emt 0:00:20]} 35. Kxg3 {[%emt 0:00:10]} f5 {[%emt 0:01:46]} 36. Kf4 {[%emt 0:00:40]} Kf7 {[%emt 0:00:41]} 37. Bh4 {[%emt 0:00:43]} Nd6 {[%emt 0:02:39]} 38. Nc2 {[%emt 0:04:39]} Nc4 {[%emt 0:01:05]} 39. Be1 {[%emt 0:00:39]} h6 {[%emt 0:01:00]} 40. h4 {[%emt 0:00:00]} g6 {[%emt 0:00:00]} 41. Bc3 {[%emt 0:00:56]} h5 {[%emt 0:11:17]} 42. Bb4 {[%emt 0:01:51]} Kf6 {[%emt 0:01:34]} 43. Ne1 {[%emt 0:01:13]} Ke6 {[%emt 0:02:19]} 44. Nd3 {[%emt 0:00:20]} Bb5 {[%emt 0:01:51]} 45. Nc5+ {[%emt 0:00:33]} Kf6 {[%emt 0:00:52]} 46. Nb7 {[%emt 0:03:15]} Ke6 {[%emt 0:04:35]} 47. Nc5+ {[%emt 0:06:27]} Kf6 {[%emt 0:01:54]} 48. Nb7 {[%emt 0:01:37]} Nb6 {[%emt 0:04:07]} 49. Bc3+ {[%emt 0:00:19]} Ke6 {[%emt 0:00:49]} 50. Kg5 {[%emt 0:00:29]} Be8 {[%emt 0:00:41]} 51. Nc5+ {[%emt 0:02:48]} Kd6 {[%emt 0:00:31]} 52. Nd3 {[%emt 0:00:17]} Nc4 {[%emt 0:09:42]} 53. Bd4 {[%emt 0:03:02]} Kc6 {[%emt 0:02:29]} 54. Nb4+ {[%emt 0:08:58]} Kd6 {[%emt 0:00:38]} 55. Nc2 {[%emt 0:00:50]} Ke6 {[%emt 0:00:25]} 56. Bc5 {[%emt 0:00:48]} Nb2 {[%emt 0:01:28]} 57. Nd4+ {[%emt 0:00:40]} Kf7 {[%emt 0:00:16]} 58. Ne2 {[%emt 0:00:42]} Nd3 {[%emt 0:00:18]} 59. Bd4 {[%emt 0:00:42]} Ke6 {[%emt 0:02:39]} 60. Kh6 {[%emt 0:02:49]} Kf7 {[%emt 0:01:29]} 61. Bc3 {[%emt 0:01:26]} Bb5 {[%emt 0:00:36]} 62. Nd4 {[%emt 0:00:20]} Be8 {[%emt 0:00:19]} 63. Ne2 {[%emt 0:01:24]} Bb5 {[%emt 0:00:33]} 64. Bd4 {[%emt 0:01:31]} Be8 {[%emt 0:00:40]} 65. Nc3 {[%emt 0:00:49]} Ne1 {[%emt 0:00:46]} 66. Nxd5 {[%emt 0:00:52]} Nxg2 {[%emt 0:00:16]} 67. Kg5 {[%emt 0:00:26]} Bc6 {[%emt 0:00:54]} 68. e4 {[%emt 0:00:10]} Ne1 {[%emt 0:01:43]} 69. Kf4 {[%emt 0:01:24]} fxe4 {[%emt 0:01:11]} 70. fxe4 {[%emt 0:00:20]} Ng2+ {[%emt 0:00:36]} 71. Kg5 {[%emt 0:00:19]} Ne1 {[%emt 0:00:36]} 72. Bf2 {[%emt 0:00:58]} Bxd5 {[%emt 0:00:41]} 73. exd5 {[%emt 0:00:11]} Nf3+ {[%emt 0:00:10]} 74. Kf4 {[%emt 0:00:18]} Nd2 {[%emt 0:00:21]} 75. Bd4 {[%emt 0:01:18]} Nc4 {[%emt 0:00:29]} 76. Bc5 {[%emt 0:00:26]} Nd2 {[%emt 0:00:38]} 77. d6 {[%emt 0:00:34]} Ke6 {[%emt 0:00:16]} 78. Bb4 {[%emt 0:00:26]} Nc4 {[%emt 0:00:28]} 79. Kg5 {[%emt 0:00:18]} Ne5 {[%emt 0:00:23]} 80. Bc3 {[%emt 0:00:45]} Nf3+ {[%emt 0:00:11]} 81. Kxg6 {[%emt 0:00:25]} Nxh4+ {[%emt 0:00:09]} 82. Kxh5 {[%emt 0:00:12]} Nf5 {[%emt 0:00:09]} 83. d7 {[%emt 0:00:22]} Kxd7 {[%emt 0:00:09]} 84. Kg5 {[%emt 0:00:23]} Nd6 {[%emt 0:00:27]} 85. Kf4 {[%emt 0:00:39]} Kc6 {[%emt 0:00:09]} 86. Bb4 {[%emt 0:00:34]} Nc4 {[%emt 0:00:13]} 87. Ke4 {[%emt 0:00:15]} Kb5 {[%emt 0:00:12]} 88. Kd4 {[%emt 0:00:20]} Nb2 {[%emt 0:00:21]} 89. Kc3 {[%emt 0:00:13]} Nd1+ {[%emt 0:00:11]} 90. Kd4 {[%emt 0:00:16]} Nb2 {[%emt 0:00:17]} 91. Kc3 {[%emt 0:00:10]} Nc4 {[%emt 0:00:09]} 92. Bf8 {[%emt 0:00:11]} Nb6 {[%emt 0:00:19]} 93. Bb4 {[%emt 0:00:13]} Nd5+ {[%emt 0:00:11]} 94. Kb2 {[%emt 0:00:21]} Kc4 {[%emt 0:00:21]} 95. Bf8 {[%emt 0:00:14]} Nf4 {[%emt 0:00:47]} 96. Ka2 {[%emt 0:00:21]} Kc3 {[%emt 0:00:19]} 97. Bg7+ {[%emt 0:00:31]} Kc2 {[%emt 0:00:10]} 98. Bf8 {[%emt 0:00:28]} Ne2 {[%emt 0:00:38]} 99. Be7 {[%emt 0:00:40]} Nc3+ {[%emt 0:00:56]} 100. Ka1 {[%emt 0:00:18]} Kb3 {[%emt 0:01:05]} 101. Bf8 {[%emt 0:00:54]} 1/2-1/2

[Event "2nd ESNAICC Women 2024"]
[Site "Andorra la Vella"]
[Date "2024.06.24"]
[Round "1.3"]
[White "Zvereva, Marija"]
[Black "Berend, Elvira"]
[Result "0-1"]
[ECO "B51"]
[WhiteElo "2040"]
[BlackElo "2230"]
[Annotator "RC"]
[PlyCount "112"]
[EventDate "2024.06.24"]
[EventType "tourn"]
[EventCountry "AND"]
[SourceTitle "playchess.com"]
[Source "ChessBase"]
[SourceQuality "1"]
[TimeControl "40/5400+30:1800+30"]

1. e4 {[%emt 0:00:06]} c5 {[%emt 0:00:08]} 2. Nf3 {[%emt 0:00:11]} d6 {[%emt 0:00:08]} 3. Bb5+ {[%emt 0:00:14]} Nd7 {[%emt 0:00:16]} 4. O-O {[%emt 0:01:12]} a6 {[%emt 0:00:43]} 5. Be2 {[%emt 0:02:25]} Ngf6 {[%emt 0:00:34]} 6. d3 {[%emt 0:00:38]} e6 {[%emt 0:01:42]} 7. a4 {[%emt 0:03:13]} Be7 {[%emt 0:01:31]} 8. Re1 {[%emt 0:05:19]} O-O {[%emt 0:00:45]} 9. h3 {[%emt 0:01:57]} b6 {[%emt 0:03:06]} 10. Bf1 {[%emt 0:15:30]} Bb7 {[%emt 0:00:46]} 11. Nc3 {[%emt 0:02:29]} Re8 {[%emt 0:06:21]} 12. g3 {[%emt 0:04:11]} Nf8 {[%emt 0:11:51]} 13. Bg2 {[%emt 0:04:50]} Qd7 {[%emt 0:02:54]} 14. d4 {[%emt 0:15:50]} Qc7 {[%emt 0:10:20]} 15. d5 {[%emt 0:04:42]} exd5 {[%emt 0:03:53]} 16. exd5 {[%emt 0:00:09]} Ng6 {[%emt 0:03:43]} 17. Be3 {[%emt 0:07:01]} Bc8 {[%emt 0:10:40]} 18. Qd3 {[%emt 0:01:38]} Bd7 {[%emt 0:00:12]} 19. Rad1 {[%emt 0:04:20]} Qc8 {[%emt 0:08:34]} 20. Qf1 {[%emt 0:10:12]} Rb8 {[%emt 0:01:16]} 21. Ng5 {[%emt 0:04:39]} h6 {[%emt 0:02:10]} 22. Nge4 {[%emt 0:03:49]} Nxe4 {[%emt 0:00:21]} 23. Nxe4 {[%emt 0:00:06]} Bxa4 {[%emt 0:00:11]} 24. b3 {[%emt 0:01:29]} Bd7 {[%emt 0:00:11]} 25. f4 {[%emt 0:01:08]} f5 {[%emt 0:00:56]} 26. Nd2 {[%emt 0:00:25]} b5 {[%emt 0:03:01]} 27. Qf3 {[%emt 0:00:48]} Bf6 {[%emt 0:00:41]} 28. Kh2 {[%emt 0:01:08]} Re7 {[%emt 0:02:40]} 29. Qh5 {[%emt 0:01:08]} Be8 {[%emt 0:01:39]} 30. Qf3 {[%emt 0:00:40]} Bf7 {[%emt 0:01:44]} 31. Qf1 {[%emt 0:00:38]} Qd7 {[%emt 0:00:52]} 32. Qd3 {[%emt 0:01:06]} Rbe8 {[%emt 0:00:55]} 33. Bf2 {[%emt 0:00:39]} Rxe1 {[%emt 0:03:14]} 34. Bxe1 {[%emt 0:00:56]} Ne7 {[%emt 0:02:01]} 35. Bf2 {[%emt 0:00:11]} a5 {[%emt 0:00:42]} 36. c4 {[%emt 0:00:32]} a4 {[%emt 0:04:14]} 37. bxa4 {[%emt 0:01:32]} bxa4 {[%emt 0:01:09]} 38. Rb1 {[%emt 0:00:23]} Ra8 {[%emt 0:01:47]} 39. Qa3 {[%emt 0:00:07]} g5 {[%emt 0:00:26]} 40. Be3 {[%emt 0:00:00]} Ng6 {[%emt 0:00:00]} 41. Bf3 {[%emt 0:06:56]} gxf4 {[%emt 0:03:19]} 42. gxf4 {[%emt 0:00:23]} Kh7 {[%emt 0:00:50]} 43. Rb6 {[%emt 0:02:24]} Bd8 {[%emt 0:03:50]} 44. Rb5 {[%emt 0:04:05]} Be8 {[%emt 0:05:49]} 45. Nb1 {[%emt 0:02:36]} Qe7 {[%emt 0:03:08]} 46. Rb2 {[%emt 0:01:17]} Ra7 {[%emt 0:03:28]} 47. Qd3 {[%emt 0:02:07]} Nh4 {[%emt 0:01:24]} 48. Bg4 {[%emt 0:03:34]} Qf6 {[%emt 0:04:31]} 49. Rb8 {[%emt 0:07:34]} h5 {[%emt 0:04:08]} 50. Bd1 {[%emt 0:01:19]} Rg7 {[%emt 0:00:26]} 51. Na3 {[%emt 0:01:14]} Rg2+ {[%emt 0:00:43]} 52. Kh1 {[%emt 0:00:02]} Qg7 {[%emt 0:01:44]} 53. Bg4 {[%emt 0:03:26]} hxg4 {[%emt 0:00:10]} 54. Rxd8 {[%emt 0:00:37]} gxh3 {[%emt 0:00:58]} 55. Rxe8 {[%emt 0:02:16]} Rh2+ {[%emt 0:00:14]} 56. Kxh2 {[%emt 0:00:11]} Qg2# {[%emt 0:00:04]} 0-1

[Event "2nd ESNAICC Women 2024"]
[Site "Andorra la Vella"]
[Date "2024.06.24"]
[Round "1.4"]
[White "Ruddy, Rachel"]
[Black "Henderson de La Fuente, Andrea"]
[Result "0-1"]
[ECO "B07"]
[WhiteElo "1719"]
[BlackElo "1966"]
[Annotator "NA RC"]
[PlyCount "90"]
[EventDate "2024.06.24"]
[EventType "tourn"]
[EventCountry "AND"]
[SourceTitle "playchess.com"]
[Source "ChessBase"]
[SourceQuality "1"]
[TimeControl "40/5400+30:1800+30"]

1. d4 {[%emt 0:00:03]} d6 {[%emt 0:00:09]} 2. e4 {[%emt 0:00:19]} Nf6 {[%emt 0:00:09]} 3. Bd3 {[%emt 0:00:54]} e5 {[%emt 0:00:15]} 4. c3 {[%emt 0:02:47]} Be7 {[%emt 0:02:02]} 5. Ne2 {[%emt 0:01:28]} Nbd7 {[%emt 0:12:31]} 6. b3 {[%emt 0:06:08]} d5 {[%emt 0:08:01]} 7. Nd2 {[%emt 0:02:29]} exd4 {[%emt 0:09:15]} 8. Nxd4 {[%emt 0:02:26]} Nc5 {[%emt 0:09:32]} 9. Bc2 {[%emt 0:04:18]} dxe4 {[%emt 0:10:27]} 10. O-O {[%emt 0:03:38]} O-O {[%emt 0:02:35]} 11. Nc4 {[%emt 0:03:38]} Nd5 {[%emt 0:05:27]} 12. Bb2 {[%emt 0:02:28]} Nf4 {[%emt 0:01:47]} 13. Re1 {[%emt 0:05:43]} f5 {[%emt 0:03:54]} 14. Ba3 {[%emt 0:02:06]} Nd5 {[%emt 0:05:07]} 15. Bb2 {[%emt 0:07:01]} Ne6 {[%emt 0:09:05]} 16. b4 {[%emt 0:06:26]} Nxd4 {[%emt 0:02:31]} 17. Qxd4 {[%emt 0:01:29]} Be6 {[%emt 0:00:32]} 18. Bb3 {[%emt 0:02:42]} Bf6 {[%emt 0:01:15]} 19. Ne5 {[%emt 0:01:15]} Qd6 {[%emt 0:04:13]} 20. c4 {[%emt 0:04:16]} Bxe5 {[%emt 0:02:30]} 21. Qxe5 {[%emt 0:00:32]} Qxe5 {[%emt 0:00:03]} 22. Bxe5 {[%emt 0:00:07]} Nxb4 {[%emt 0:00:16]} 23. Red1 {[%emt 0:02:05]} Nd3 {[%emt 0:00:54]} 24. Bxc7 {[%emt 0:00:49]} Rfc8 {[%emt 0:00:41]} 25. Ba5 {[%emt 0:04:07]} Bxc4 {[%emt 0:01:07]} 26. Bc2 {[%emt 0:01:33]} Nf4 {[%emt 0:02:05]} 27. Bb3 {[%emt 0:04:00]} Bxb3 {[%emt 0:01:36]} 28. axb3 {[%emt 0:00:06]} Nd3 {[%emt 0:00:15]} 29. Bd2 {[%emt 0:03:14]} Rc2 {[%emt 0:01:02]} 30. Be3 {[%emt 0:02:25]} a6 {[%emt 0:01:40]} 31. Rab1 {[%emt 0:01:20]} Rac8 {[%emt 0:00:41]} 32. g3 {[%emt 0:00:36]} Kf7 {[%emt 0:00:56]} 33. h4 {[%emt 0:00:47]} Ke6 {[%emt 0:01:07]} 34. b4 {[%emt 0:00:36]} Ra2 {[%emt 0:01:17]} 35. Bc5 {[%emt 0:02:02]} Rc6 {[%emt 0:00:46]} 36. Rf1 {[%emt 0:00:49]} b6 {[%emt 0:01:03]} 37. Be3 {[%emt 0:00:15]} b5 {[%emt 0:00:59]} 38. Bd4 {[%emt 0:01:03]} g6 {[%emt 0:00:22]} 39. Be3 {[%emt 0:00:43]} Rcc2 {[%emt 0:00:31]} 40. Ra1 {[%emt 0:00:00]} Nxb4 {[%emt 0:00:00]} 41. Rxa2 {[%emt 0:02:30]} Nxa2 {[%emt 0:01:31]} 42. Rd1 {[%emt 0:01:05]} b4 {[%emt 0:02:16]} 43. Rd8 {[%emt 0:00:11]} b3 {[%emt 0:00:22]} 44. Rb8 {[%emt 0:00:14]} b2 {[%emt 0:00:20]} 45. Kg2 {[%emt 0:00:27]} Nc3 {[%emt 0:00:21]} 0-1

[Event "2nd ESNAICC Women 2024"]
[Site "Andorra la Vella"]
[Date "2024.06.24"]
[Round "1.5"]
[White "Muratet Carmona, Julia"]
[Black "De la Riva Real, Ariadna"]
[Result "0-1"]
[ECO "D02"]
[WhiteElo "1834"]
[BlackElo "1774"]
[Annotator "NA RC"]
[PlyCount "84"]
[EventDate "2024.06.24"]
[EventType "tourn"]
[EventCountry "AND"]
[SourceTitle "playchess.com"]
[Source "ChessBase"]
[SourceQuality "1"]
[TimeControl "40/5400+30:1800+30"]

1. d4 {[%emt 0:00:04]} d5 {[%emt 0:00:11]} 2. Bf4 {[%emt 0:00:15]} Nf6 {[%emt 0:00:30]} 3. e3 {[%emt 0:00:21]} e6 {[%emt 0:00:50]} 4. Nf3 {[%emt 0:00:39]} Be7 {[%emt 0:02:20]} 5. Bd3 {[%emt 0:00:48]} O-O {[%emt 0:01:55]} 6. Nbd2 {[%emt 0:02:22]} b6 {[%emt 0:01:50]} 7. c3 {[%emt 0:03:27]} Nbd7 {[%emt 0:01:39]} 8. Ne5 {[%emt 0:05:12]} Bb7 {[%emt 0:00:31]} 9. Qb1 {[%emt 0:11:07]} h6 {[%emt 0:07:05]} 10. h4 {[%emt 0:11:17]} Nxe5 {[%emt 0:12:48]} 11. dxe5 {[%emt 0:05:43]} Nd7 {[%emt 0:04:07]} 12. Qd1 {[%emt 0:05:04]} f5 {[%emt 0:05:00]} 13. Rh3 {[%emt 0:21:50]} Nc5 {[%emt 0:11:46]} 14. Be2 {[%emt 0:00:33]} Bxh4 {[%emt 0:08:47]} 15. Bh5 {[%emt 0:05:17]} Nd3+ {[%emt 0:03:31]} 16. Kf1 {[%emt 0:00:38]} Nxf2 {[%emt 0:00:34]} 17. Qf3 {[%emt 0:01:46]} Nxh3 {[%emt 0:02:35]} 18. Qxh3 {[%emt 0:00:43]} Bg5 {[%emt 0:01:38]} 19. Nf3 {[%emt 0:04:36]} Bxf4 {[%emt 0:00:53]} 20. exf4 {[%emt 0:00:05]} Qd7 {[%emt 0:01:21]} 21. Kg1 {[%emt 0:02:22]} Rad8 {[%emt 0:04:28]} 22. Bg6 {[%emt 0:03:38]} Qb5 {[%emt 0:01:31]} 23. b3 {[%emt 0:01:44]} Qc5+ {[%emt 0:00:09]} 24. Nd4 {[%emt 0:00:43]} Bc8 {[%emt 0:01:11]} 25. Qd3 {[%emt 0:01:16]} Bd7 {[%emt 0:00:47]} 26. Kf2 {[%emt 0:03:11]} Qe7 {[%emt 0:00:58]} 27. Rh1 {[%emt 0:00:53]} Be8 {[%emt 0:00:19]} 28. Qg3 {[%emt 0:01:34]} c5 {[%emt 0:03:21]} 29. Bxe8 {[%emt 0:05:37]} Qxe8 {[%emt 0:00:24]} 30. Nf3 {[%emt 0:00:24]} Kf7 {[%emt 0:12:00]} 31. Nh4 {[%emt 0:00:38]} d4 {[%emt 0:00:16]} 32. Ng6 {[%emt 0:01:31]} Rg8 {[%emt 0:00:08]} 33. Nh4 {[%emt 0:00:35]} dxc3 {[%emt 0:00:31]} 34. Qxc3 {[%emt 0:00:30]} Rd4 {[%emt 0:00:21]} 35. g3 {[%emt 0:00:49]} Qc6 {[%emt 0:00:37]} 36. Nf3 {[%emt 0:00:15]} Rd7 {[%emt 0:00:38]} 37. Nd2 {[%emt 0:00:47]} Qxh1 {[%emt 0:00:10]} 38. Nc4 {[%emt 0:00:16]} g5 {[%emt 0:01:36]} 39. Nd6+ {[%emt 0:00:09]} Ke7 {[%emt 0:00:15]} 40. Qe3 {[%emt 0:00:00]} gxf4 {[%emt 0:00:00]} 41. Qxf4 {[%emt 0:00:58]} Rg4 {[%emt 0:02:09]} 42. Qe3 {[%emt 0:11:57]} Qh2+ {[%emt 0:00:21]} 0-1

[Event "2nd ESNAICC Women 2024"]
[Site "Andorra la Vella"]
[Date "2024.06.24"]
[Round "2.2"]
[White "Henderson de La Fuente, Andrea"]
[Black "Muratet Carmona, Julia"]
[Result "1-0"]
[ECO "C02"]
[WhiteElo "1966"]
[BlackElo "1834"]
[Annotator "NA RC"]
[PlyCount "81"]
[EventDate "2024.06.24"]
[EventType "tourn"]
[EventCountry "AND"]
[SourceTitle "playchess.com"]
[Source "ChessBase"]
[SourceQuality "1"]
[TimeControl "40/5400+30:1800+30"]

1. d4 {[%emt 0:00:02]} Nc6 {[%emt 0:00:27]} 2. e4 {[%emt 0:02:43]} e6 {[%emt 0:00:35]} 3. Nf3 {[%emt 0:03:49]} d5 {[%emt 0:01:53]} 4. e5 {[%emt 0:06:28]} Nge7 {[%emt 0:03:16]} 5. Bg5 {[%emt 0:08:16]} h6 {[%emt 0:01:50]} 6. Bh4 {[%emt 0:01:52]} g5 {[%emt 0:11:28]} 7. Nxg5 {[%emt 0:01:22]} hxg5 {[%emt 0:08:47]} 8. Bxg5 {[%emt 0:00:01]} Qd7 {[%emt 0:11:41]} 9. g4 {[%emt 0:16:44]} Bg7 {[%emt 0:11:30]} 10. c3 {[%emt 0:12:10]} Nxe5 {[%emt 0:17:45]} 11. dxe5 {[%emt 0:12:32]} Bxe5 {[%emt 0:00:04]} 12. h4 {[%emt 0:00:58]} f6 {[%emt 0:06:09]} 13. Be3 {[%emt 0:02:50]} b6 {[%emt 0:00:09]} 14. Nd2 {[%emt 0:07:07]} c5 {[%emt 0:01:36]} 15. Nf3 {[%emt 0:07:05]} Bd6 {[%emt 0:00:21]} 16. a4 {[%emt 0:04:05]} a6 {[%emt 0:00:15]} 17. g5 {[%emt 0:00:37]} f5 {[%emt 0:01:37]} 18. h5 {[%emt 0:01:24]} Bb7 {[%emt 0:01:23]} 19. Bg2 {[%emt 0:00:58]} O-O-O {[%emt 0:00:46]} 20. Qb3 {[%emt 0:02:28]} Kc7 {[%emt 0:02:22]} 21. O-O-O {[%emt 0:00:24]} f4 {[%emt 0:00:15]} 22. Bd2 {[%emt 0:00:22]} c4 {[%emt 0:01:25]} 23. Qc2 {[%emt 0:00:06]} Bc6 {[%emt 0:00:17]} 24. b3 {[%emt 0:05:48]} cxb3 {[%emt 0:00:37]} 25. Qd3 {[%emt 0:00:18]} Kb7 {[%emt 0:01:54]} 26. Rde1 {[%emt 0:00:21]} Bxa4 {[%emt 0:00:40]} 27. Ne5 {[%emt 0:01:33]} Bxe5 {[%emt 0:01:15]} 28. Rxe5 {[%emt 0:00:09]} Qd6 {[%emt 0:00:18]} 29. Bxf4 {[%emt 0:02:28]} Qa3+ {[%emt 0:00:41]} 30. Kd2 {[%emt 0:00:00]} Bb5 {[%emt 0:01:23]} 31. Qb1 {[%emt 0:00:07]} Rhf8 {[%emt 0:07:10]} 32. Be3 {[%emt 0:00:18]} Nf5 {[%emt 0:01:21]} 33. Bf1 {[%emt 0:00:50]} Nxe3 {[%emt 0:00:46]} 34. Bxb5 {[%emt 0:00:20]} Nc4+ {[%emt 0:00:32]} 35. Bxc4 {[%emt 0:00:09]} dxc4+ {[%emt 0:00:04]} 36. Ke2 {[%emt 0:00:14]} Qd6 {[%emt 0:00:19]} 37. Qe4+ {[%emt 0:00:28]} Ka7 {[%emt 0:00:08]} 38. Qe3 {[%emt 0:00:22]} Qa3 {[%emt 0:01:31]} 39. Rxe6 {[%emt 0:00:59]} Qb2+ {[%emt 0:04:11]} 40. Kf1 {[%emt 0:00:00]} Qb1+ {[%emt 0:00:00]} 41. Kg2 {[%emt 0:00:24]} 1-0

[Event "2nd ESNAICC Women 2024"]
[Site "Andorra la Vella"]
[Date "2024.06.24"]
[Round "2.3"]
[White "Berend, Elvira"]
[Black "Ruddy, Rachel"]
[Result "1-0"]
[ECO "D11"]
[WhiteElo "2230"]
[BlackElo "1719"]
[Annotator "RC"]
[PlyCount "47"]
[EventDate "2024.06.24"]
[EventType "tourn"]
[EventCountry "AND"]
[SourceTitle "playchess.com"]
[Source "ChessBase"]
[SourceQuality "1"]
[TimeControl "40/5400+30:1800+30"]

1. d4 {[%emt 0:00:03]} d5 {[%emt 0:00:07]} 2. c4 {[%emt 0:00:12]} c6 {[%emt 0:00:10]} 3. Nd2 {[%emt 0:00:33]} Nf6 {[%emt 0:00:22]} 4. Ngf3 {[%emt 0:00:14]} Bf5 {[%emt 0:00:25]} 5. g3 {[%emt 0:00:43]} Nbd7 {[%emt 0:01:10]} 6. Bg2 {[%emt 0:00:11]} e6 {[%emt 0:00:23]} 7. O-O {[%emt 0:00:11]} Bd6 {[%emt 0:00:23]} 8. b3 {[%emt 0:00:39]} e5 {[%emt 0:00:45]} 9. dxe5 {[%emt 0:01:06]} Nxe5 {[%emt 0:00:16]} 10. cxd5 {[%emt 0:00:51]} Nxf3+ {[%emt 0:03:52]} 11. Nxf3 {[%emt 0:00:20]} cxd5 {[%emt 0:02:01]} 12. Bb2 {[%emt 0:00:43]} Be7 {[%emt 0:00:21]} 13. Qd4 {[%emt 0:07:52]} O-O {[%emt 0:01:03]} 14. Rfd1 {[%emt 0:02:10]} b6 {[%emt 0:06:05]} 15. Qf4 {[%emt 0:03:37]} Be4 {[%emt 0:01:35]} 16. Nd4 {[%emt 0:05:07]} Bxg2 {[%emt 0:03:53]} 17. Kxg2 {[%emt 0:00:58]} Rc8 {[%emt 0:03:39]} 18. Nf5 {[%emt 0:04:12]} Rc2 {[%emt 0:04:38]} 19. Qg5 {[%emt 0:01:42]} Ne8 {[%emt 0:07:48]} 20. Nxe7+ {[%emt 0:00:54]} Kh8 {[%emt 0:00:12]} 21. Ng6+ {[%emt 0:00:39]} fxg6 {[%emt 0:00:30]} 22. Qxd8 {[%emt 0:00:05]} Rxb2 {[%emt 0:00:13]} 23. Qe7 {[%emt 0:00:09]} Kg8 {[%emt 0:00:28]} 24. Rxd5 {[%emt 0:00:30]} 1-0

[Event "2nd ESNAICC Women 2024"]
[Site "Andorra la Vella"]
[Date "2024.06.24"]
[Round "2.4"]
[White "Markidou, Christianna"]
[Black "Zvereva, Marija"]
[Result "0-1"]
[ECO "B32"]
[WhiteElo "1676"]
[BlackElo "2040"]
[Annotator "NA RC"]
[PlyCount "62"]
[EventDate "2024.06.24"]
[EventType "tourn"]
[EventCountry "AND"]
[SourceTitle "playchess.com"]
[Source "ChessBase"]
[SourceQuality "1"]
[TimeControl "40/5400+30:1800+30"]

1. e4 {[%emt 0:00:09]} c5 {[%emt 0:00:13]} 2. Nf3 {[%emt 0:00:11]} Nc6 {[%emt 0:00:04]} 3. d4 {[%emt 0:00:10]} cxd4 {[%emt 0:00:08]} 4. Nxd4 {[%emt 0:00:05]} e5 {[%emt 0:00:06]} 5. Nxc6 {[%emt 0:01:18]} bxc6 {[%emt 0:01:37]} 6. c4 {[%emt 0:06:15]} Nf6 {[%emt 0:00:54]} 7. Bg5 {[%emt 0:05:16]} Qa5+ {[%emt 0:02:03]} 8. Qd2 {[%emt 0:01:14]} Bb4 {[%emt 0:00:27]} 9. Nc3 {[%emt 0:06:20]} Nxe4 {[%emt 0:00:30]} 10. Nxe4 {[%emt 0:10:32]} Bxd2+ {[%emt 0:01:44]} 11. Bxd2 {[%emt 0:01:52]} Qb6 {[%emt 0:04:10]} 12. Nd6+ {[%emt 0:01:11]} Ke7 {[%emt 0:02:13]} 13. Nxc8+ {[%emt 0:00:26]} Raxc8 {[%emt 0:00:17]} 14. Bc3 {[%emt 0:01:01]} Rhe8 {[%emt 0:06:11]} 15. Rd1 {[%emt 0:01:29]} d5 {[%emt 0:02:53]} 16. b3 {[%emt 0:06:00]} d4 {[%emt 0:00:30]} 17. Bd2 {[%emt 0:05:43]} e4 {[%emt 0:02:02]} 18. Be2 {[%emt 0:00:26]} f5 {[%emt 0:00:33]} 19. O-O {[%emt 0:00:22]} d3 {[%emt 0:00:46]} 20. Bxd3 {[%emt 0:05:07]} exd3 {[%emt 0:00:16]} 21. Bc3 {[%emt 0:00:12]} Rcd8 {[%emt 0:01:34]} 22. Bxg7 {[%emt 0:02:58]} Kf7 {[%emt 0:00:07]} 23. Bc3 {[%emt 0:09:03]} Re2 {[%emt 0:00:14]} 24. Bd2 {[%emt 0:04:28]} Qd4 {[%emt 0:01:03]} 25. Be3 {[%emt 0:01:17]} Rxe3 {[%emt 0:01:07]} 26. fxe3 {[%emt 0:00:11]} Qxe3+ {[%emt 0:00:04]} 27. Rf2 {[%emt 0:02:48]} d2 {[%emt 0:00:25]} 28. Kf1 {[%emt 0:01:05]} Qd3+ {[%emt 0:00:53]} 29. Kg1 {[%emt 0:01:35]} Qc2 {[%emt 0:00:18]} 30. Rff1 {[%emt 0:03:11]} Re8 {[%emt 0:00:42]} 31. b4 {[%emt 0:03:56]} Qxd1 {[%emt 0:01:46]} 0-1